[Event "ETCC Women 2013"]
[Site "Warsaw"]
[Date "2013.11.12"]
[Round "5"]
[White "Dolzhikova, Olga"]
[Black "Srebrnic, Ana"]
[Result "1-0"]
[ECO "C41"]
[WhiteElo "2198"]
[BlackElo "2198"]
[PlyCount "119"]
[EventDate "2013.??.??"]
[EventCountry "POL"]
[WhiteTeam "Norway"]
[BlackTeam "Slovenia"]
[WhiteTeamCountry "NOR"]
[BlackTeamCountry "SLO"]
[TimeControl "40/5400+30:1800+30"]

1. e4 {[%emt 0:00:00]} d6 {[%emt 0:00:00]} 2. d4 {[%emt 0:00:07]} Nf6 {[%emt 0:
00:00]} 3. Nc3 {[%emt 0:00:29]} e5 {[%emt 0:00:00]} 4. Nf3 {[%emt 0:00:34]}
Nbd7 {[%emt 0:00:00]} 5. g4 {[%emt 0:00:33]} g6 {[%emt 0:00:10]} 6. h3 {[%emt
0:00:41]} Bg7 {[%emt 0:02:57]} 7. Be3 {[%emt 0:04:02]} O-O {[%emt 0:04:16]} 8.
Bg2 {[%emt 0:04:49]} Re8 {[%emt 0:05:00]} 9. O-O {[%emt 0:03:03]} c6 {[%emt 0:
04:40]} 10. Qd2 {[%emt 0:06:43]} b5 {[%emt 0:11:56]} 11. a3 {[%emt 0:02:28]} a6
{[%emt 0:08:50]} 12. Rad1 {[%emt 0:03:27]} Qc7 {[%emt 0:05:25]} 13. Ng5 {[%emt
0:17:45]} h6 {[%emt 0:16:14]} 14. Nf3 {[%emt 0:00:46]} h5 {[%emt 0:00:07]} 15.
g5 {[%emt 0:03:21]} Nh7 {[%emt 0:00:05]} 16. d5 {[%emt 0:08:24]} c5 {[%emt 0:
01:13]} 17. Ne2 {[%emt 0:02:48]} a5 {[%emt 0:05:14]} 18. Nh4 {[%emt 0:05:31]}
b4 {[%emt 0:01:29]} 19. a4 {[%emt 0:05:54]} Ba6 {[%emt 0:05:21]} 20. Kh2 {
[%emt 0:02:20]} Nhf8 {[%emt 0:04:58]} 21. Rg1 {[%emt 0:00:37]} Nb6 {[%emt 0:00:
32]} 22. b3 {[%emt 0:00:30]} Nfd7 {[%emt 0:02:47]} 23. Ng3 {[%emt 0:05:54]} c4
{[%emt 0:01:58]} 24. Rc1 {[%emt 0:00:47]} Nc5 {[%emt 0:01:26]} 25. Qd1 {[%emt
0:02:30]} Bc8 {[%emt 0:05:29]} 26. Bf3 {[%emt 0:04:48]} Qd7 {[%emt 0:00:24]}
27. Ngf5 {[%emt 0:00:59]} gxf5 {[%emt 0:02:28]} 28. Nxf5 {[%emt 0:03:09]} Kf8 {
[%emt 0:05:00]} 29. Bh1 {[%emt 0:03:17]} Nxd5 {[%emt 0:03:14]} 30. Qxd5 {[%emt
0:00:56]} Ra6 {[%emt 0:02:09]} 31. Bxc5 {[%emt 0:03:14]} dxc5 {[%emt 0:00:05]}
32. Qxc5+ {[%emt 0:00:11]} Kg8 {[%emt 0:00:27]} 33. Rcd1 {[%emt 0:01:05]} Qe6 {
[%emt 0:00:24]} 34. Rd5 {[%emt 0:03:26]} cxb3 {[%emt 0:01:06]} 35. cxb3 {[%emt
0:00:10]} Rc6 {[%emt 0:01:17]} 36. Qxa5 {[%emt 0:00:39]} Rc2 {[%emt 0:00:04]}
37. Rf1 {[%emt 0:01:28]} Bb7 {[%emt 0:00:31]} 38. Rd8 {[%emt 0:00:44]} Kh7 {
[%emt 0:00:47]} 39. Rxe8 {[%emt 0:00:30]} Qxe8 {[%emt 0:00:07]} 40. Qxb4 {
[%emt 0:00:00]} Ba6 {[%emt 0:00:00]} 41. Rd1 {[%emt 0:02:50]} Rxf2+ {[%emt 0:
05:59]} 42. Kg3 {[%emt 0:01:41]} Rc2 {[%emt 0:03:07]} 43. Bf3 {[%emt 0:07:56]}
Bc8 {[%emt 0:02:32]} 44. Nxg7 {[%emt 0:03:10]} Kxg7 {[%emt 0:00:08]} 45. Rd6 {
[%emt 0:01:11]} Be6 {[%emt 0:02:15]} 46. h4 {[%emt 0:04:47]} Qc8 {[%emt 0:01:
50]} 47. Qa5 {[%emt 0:04:26]} Rc5 {[%emt 0:02:36]} 48. Qb6 {[%emt 0:00:39]} Rc3
{[%emt 0:02:45]} 49. Rd8 {[%emt 0:01:05]} Rxb3 {[%emt 0:00:25]} 50. Qd6 {[%emt
0:01:22]} Rxf3+ {[%emt 0:00:27]} 51. Kxf3 {[%emt 0:00:04]} Qc3+ {[%emt 0:00:02]
} 52. Qd3 {[%emt 0:00:48]} Qe1 {[%emt 0:00:20]} 53. Kg2 {[%emt 0:01:28]} Bg4 {
[%emt 0:01:47]} 54. Re8 {[%emt 0:02:35]} Qa1 {[%emt 0:10:23]} 55. Qg3 {[%emt 0:
02:05]} Bh3+ {[%emt 0:04:04]} 56. Qxh3 {[%emt 0:00:27]} Qb2+ {[%emt 0:00:16]}
57. Kh1 {[%emt 0:01:23]} Qc1+ {[%emt 0:00:20]} 58. Kh2 {[%emt 0:00:17]} Qd2+ {
[%emt 0:00:27]} 59. Qg2 {[%emt 0:00:28]} Qe1 {[%emt 0:00:28]} 60. Qf3 {[%emt 0:
01:10]} 1-0

[Event "ETCC Women 2013"]
[Site "Warsaw"]
[Date "2013.11.12"]
[Round "5"]
[White "Fakhiridou, Ekaterini"]
[Black "Wisniowska, Klaudia"]
[Result "0-1"]
[ECO "B52"]
[WhiteElo "2168"]
[BlackElo "2153"]
[PlyCount "126"]
[EventDate "2013.??.??"]
[EventCountry "POL"]
[WhiteTeam "Greece"]
[BlackTeam "Poland"]
[WhiteTeamCountry "GRE"]
[BlackTeamCountry "POL"]
[TimeControl "40/5400+30:1800+30"]

1. e4 {[%emt 0:00:00]} c5 {[%emt 0:00:00]} 2. Nf3 {[%emt 0:00:00]} d6 {[%emt 0:
00:00]} 3. Bb5+ {[%emt 0:00:00]} Bd7 {[%emt 0:00:48]} 4. Bxd7+ {[%emt 0:00:10]}
Qxd7 {[%emt 0:00:06]} 5. c4 {[%emt 0:03:33]} Nc6 {[%emt 0:01:02]} 6. d4 {[%emt
0:01:19]} cxd4 {[%emt 0:00:51]} 7. Nxd4 {[%emt 0:00:02]} Nf6 {[%emt 0:00:57]}
8. Nc3 {[%emt 0:00:08]} g6 {[%emt 0:00:05]} 9. f3 {[%emt 0:03:39]} Bg7 {[%emt
0:04:19]} 10. Be3 {[%emt 0:00:37]} O-O {[%emt 0:10:50]} 11. O-O {[%emt 0:02:14]
} e6 {[%emt 0:08:22]} 12. Rc1 {[%emt 0:02:31]} Rfd8 {[%emt 0:04:03]} 13. Qd2 {
[%emt 0:09:57]} Ne5 {[%emt 0:15:28]} 14. b3 {[%emt 0:07:57]} d5 {[%emt 0:01:12]
} 15. exd5 {[%emt 0:13:37]} exd5 {[%emt 0:00:45]} 16. c5 {[%emt 0:00:09]} Ne8 {
[%emt 0:06:49]} 17. h3 {[%emt 0:05:47]} Rac8 {[%emt 0:05:08]} 18. Nce2 {[%emt
0:09:09]} Nf6 {[%emt 0:02:38]} 19. Rfd1 {[%emt 0:04:36]} Re8 {[%emt 0:02:08]}
20. Bh6 {[%emt 0:01:29]} Bh8 {[%emt 0:03:28]} 21. Rc2 {[%emt 0:05:30]} Qe7 {
[%emt 0:09:08]} 22. Rdc1 {[%emt 0:00:14]} a6 {[%emt 0:05:45]} 23. Bg5 {[%emt 0:
03:02]} Bg7 {[%emt 0:01:56]} 24. Nf4 {[%emt 0:08:37]} Qd7 {[%emt 0:00:43]} 25.
Nd3 {[%emt 0:00:19]} Nc6 {[%emt 0:04:28]} 26. Nxc6 {[%emt 0:00:46]} bxc6 {
[%emt 0:00:14]} 27. Bf4 {[%emt 0:04:49]} Nh5 {[%emt 0:00:22]} 28. Bd6 {[%emt 0:
00:21]} Bd4+ {[%emt 0:02:35]} 29. Nf2 {[%emt 0:00:52]} Be3 {[%emt 0:01:15]} 30.
Qc3 {[%emt 0:00:31]} Ng7 {[%emt 0:00:52]} 31. Rd1 {[%emt 0:04:25]} Nf5 {[%emt
0:00:40]} 32. Bh2 {[%emt 0:01:02]} Nd4 {[%emt 0:04:52]} 33. Rb2 {[%emt 0:06:32]
} h5 {[%emt 0:01:15]} 34. Kh1 {[%emt 0:01:30]} Nf5 {[%emt 0:00:25]} 35. Qd3 {
[%emt 0:00:50]} Bxc5 {[%emt 0:00:58]} 36. Qxa6 {[%emt 0:00:24]} Qe7 {[%emt 0:
00:58]} 37. Qd3 {[%emt 0:00:44]} Qg5 {[%emt 0:00:33]} 38. f4 {[%emt 0:00:43]}
Qf6 {[%emt 0:00:44]} 39. Re2 {[%emt 0:00:24]} Bxf2 {[%emt 0:01:56]} 40. Rxf2 {
[%emt 0:00:00]} Re3 {[%emt 0:00:00]} 41. Qa6 {[%emt 0:09:52]} Rce8 {[%emt 0:01:
07]} 42. Rff1 {[%emt 0:06:24]} d4 {[%emt 0:03:46]} 43. Rc1 {[%emt 0:02:09]}
R8e6 {[%emt 0:02:32]} 44. Rfd1 {[%emt 0:03:37]} h4 {[%emt 0:05:00]} 45. Qc8+ {
[%emt 0:08:27]} Kh7 {[%emt 0:01:32]} 46. Qd7 {[%emt 0:01:09]} Rd6 {[%emt 0:02:
46]} 47. Qc7 {[%emt 0:00:31]} d3 {[%emt 0:00:59]} 48. a4 {[%emt 0:01:29]} d2 {
[%emt 0:01:13]} 49. Rb1 {[%emt 0:00:07]} Qe6 {[%emt 0:00:38]} 50. a5 {[%emt 0:
01:50]} Re1+ {[%emt 0:01:27]} 51. Bg1 {[%emt 0:00:00]} Rxd1 {[%emt 0:07:55]}
52. Rxd1 {[%emt 0:00:02]} Qxb3 {[%emt 0:00:05]} 53. Qxd6 {[%emt 0:01:39]} Nxd6
{[%emt 0:00:04]} 54. Rxd2 {[%emt 0:00:04]} Nc4 {[%emt 0:01:01]} 55. Rd4 {[%emt
0:00:16]} Nxa5 {[%emt 0:00:18]} 56. f5 {[%emt 0:00:07]} gxf5 {[%emt 0:01:54]}
57. Rxh4+ {[%emt 0:00:13]} Kg6 {[%emt 0:00:10]} 58. Rd4 {[%emt 0:00:15]} Nc4 {
[%emt 0:00:28]} 59. Bf2 {[%emt 0:01:12]} f6 {[%emt 0:01:41]} 60. Rd8 {[%emt 0:
01:02]} Qb1+ {[%emt 0:00:54]} 61. Kh2 {[%emt 0:00:08]} Qf1 {[%emt 0:00:42]} 62.
Bd4 {[%emt 0:00:56]} Qf4+ {[%emt 0:00:54]} 63. Kg1 {[%emt 0:00:27]} Ne3 {[%emt
0:00:17]} 0-1

[Event "ETCC Women 2013"]
[Site "Warsaw"]
[Date "2013.11.12"]
[Round "5"]
[White "Galojan, Lilit"]
[Black "Khurtsidze, Nino"]
[Result "1/2-1/2"]
[ECO "E32"]
[WhiteElo "2301"]
[BlackElo "2462"]
[PlyCount "49"]
[EventDate "2013.??.??"]
[EventCountry "POL"]
[WhiteTeam "Armenia"]
[BlackTeam "Georgia"]
[WhiteTeamCountry "ARM"]
[BlackTeamCountry "GEO"]
[TimeControl "40/5400+30:1800+30"]

1. c4 {[%emt 0:00:00]} Nf6 {[%emt 0:00:00]} 2. Nc3 {[%emt 0:00:00]} e6 {[%emt
0:00:00]} 3. d4 {[%emt 0:03:46]} Bb4 {[%emt 0:00:00]} 4. Qc2 {[%emt 0:01:24]}
O-O {[%emt 0:00:18]} 5. e4 {[%emt 0:00:15]} d5 {[%emt 0:00:32]} 6. e5 {[%emt 0:
00:04]} Ne4 {[%emt 0:00:04]} 7. Bd3 {[%emt 0:00:08]} c5 {[%emt 0:00:39]} 8. Nf3
{[%emt 0:00:17]} cxd4 {[%emt 0:18:41]} 9. Nxd4 {[%emt 0:00:06]} Nd7 {[%emt 0:
00:08]} 10. Bf4 {[%emt 0:00:42]} Ndc5 {[%emt 0:05:50]} 11. O-O {[%emt 0:03:05]}
Nxd3 12. Qxd3 {[%emt 0:00:44]} Bxc3 {[%emt 0:03:14]} 13. bxc3 {[%emt 0:00:02]}
b6 {[%emt 0:02:02]} 14. cxd5 {[%emt 0:03:42]} exd5 {[%emt 0:00:33]} 15. Rfe1 {
[%emt 0:10:41]} Be6 {[%emt 0:06:18]} 16. f3 {[%emt 0:11:37]} Nc5 {[%emt 0:04:
37]} 17. Qd2 {[%emt 0:08:57]} Qd7 {[%emt 0:04:29]} 18. Bg5 {[%emt 0:04:05]}
Rac8 {[%emt 0:00:57]} 19. Bf6 {[%emt 0:05:41]} gxf6 {[%emt 0:32:11]} 20. Qh6 {
[%emt 0:03:41]} f5 {[%emt 0:00:43]} 21. Qg5+ {[%emt 0:00:48]} Kh8 {[%emt 0:00:
03]} 22. Qf6+ {[%emt 0:00:05]} Kg8 {[%emt 0:00:03]} 23. Qg5+ {[%emt 0:00:05]}
Kh8 {[%emt 0:00:03]} 24. Qf6+ {[%emt 0:00:06]} Kg8 {[%emt 0:00:04]} 25. Qg5+ {
[%emt 0:00:09]} 1/2-1/2

[Event "ETCC Women 2013"]
[Site "Warsaw"]
[Date "2013.11.12"]
[Round "5"]
[White "Gara, Anita"]
[Black "Ozturk, Kubra"]
[Result "1/2-1/2"]
[ECO "C78"]
[WhiteElo "2311"]
[BlackElo "2281"]
[PlyCount "140"]
[EventDate "2013.??.??"]
[EventCountry "POL"]
[WhiteTeam "Hungary"]
[BlackTeam "Turkey"]
[WhiteTeamCountry "HUN"]
[BlackTeamCountry "TUR"]
[TimeControl "40/5400+30:1800+30"]

1. e4 {[%emt 0:00:00]} e5 {[%emt 0:00:00]} 2. Nf3 {[%emt 0:00:00]} Nc6 {[%emt
0:00:00]} 3. Bb5 {[%emt 0:00:00]} a6 {[%emt 0:00:00]} 4. Ba4 {[%emt 0:00:00]}
Nf6 {[%emt 0:00:00]} 5. O-O {[%emt 0:00:09]} b5 {[%emt 0:00:00]} 6. Bb3 {[%emt
0:00:05]} Bb7 {[%emt 0:00:04]} 7. d3 {[%emt 0:00:30]} Be7 {[%emt 0:00:15]} 8.
Nc3 {[%emt 0:02:04]} O-O {[%emt 0:00:35]} 9. a3 {[%emt 0:01:09]} d6 {[%emt 0:
01:22]} 10. Re1 {[%emt 0:03:25]} Na5 {[%emt 0:04:38]} 11. Ba2 {[%emt 0:00:07]}
c5 {[%emt 0:00:06]} 12. Bg5 {[%emt 0:01:21]} Nc6 {[%emt 0:05:30]} 13. Bxf6 {
[%emt 0:01:53]} Bxf6 {[%emt 0:02:27]} 14. Nd5 {[%emt 0:02:05]} g6 {[%emt 0:09:
00]} 15. Nxf6+ {[%emt 0:04:33]} Qxf6 {[%emt 0:00:03]} 16. Bd5 {[%emt 0:02:59]}
Rab8 {[%emt 0:00:34]} 17. c3 {[%emt 0:03:17]} Nd8 {[%emt 0:01:56]} 18. d4 {
[%emt 0:05:44]} Bc8 {[%emt 0:11:01]} 19. Qd3 {[%emt 0:09:54]} Bg4 {[%emt 0:04:
11]} 20. dxe5 {[%emt 0:02:38]} dxe5 {[%emt 0:00:12]} 21. Nd2 {[%emt 0:00:11]}
Ne6 {[%emt 0:03:32]} 22. Qe3 {[%emt 0:07:16]} Nf4 {[%emt 0:06:19]} 23. g3 {
[%emt 0:03:26]} Nh3+ {[%emt 0:00:38]} 24. Kg2 {[%emt 0:00:07]} c4 {[%emt 0:01:
19]} 25. f3 {[%emt 0:06:04]} Bd7 {[%emt 0:00:29]} 26. Re2 {[%emt 0:08:02]} Kg7
{[%emt 0:01:50]} 27. a4 {[%emt 0:06:15]} bxa4 {[%emt 0:04:28]} 28. Nxc4 {[%emt
0:00:58]} h5 {[%emt 0:00:35]} 29. Rf1 {[%emt 0:14:21]} g5 {[%emt 0:06:44]} 30.
Qa7 {[%emt 0:00:37]} Rbd8 {[%emt 0:02:09]} 31. Qc7 {[%emt 0:01:50]} Bb5 {[%emt
0:04:18]} 32. Ree1 {[%emt 0:06:22]} Rc8 {[%emt 0:05:58]} 33. Qxe5 {[%emt 0:00:
05]} Bxc4 {[%emt 0:03:45]} 34. Qxf6+ {[%emt 0:00:02]} Kxf6 {[%emt 0:00:01]} 35.
Bxc4 {[%emt 0:00:04]} Rxc4 {[%emt 0:00:27]} 36. Kxh3 {[%emt 0:00:03]} Rb8 {
[%emt 0:00:27]} 37. Re2 {[%emt 0:01:12]} Kg6 {[%emt 0:03:23]} 38. f4 {[%emt 0:
02:44]} gxf4 {[%emt 0:02:50]} 39. Rxf4 {[%emt 0:01:45]} Rb6 {[%emt 0:01:43]}
40. g4 {[%emt 0:00:00]} a3 {[%emt 0:00:00]} 41. gxh5+ {[%emt 0:06:47]} Kh6 {
[%emt 0:03:46]} 42. bxa3 {[%emt 0:00:43]} Rxc3+ {[%emt 0:00:06]} 43. Kg4 {
[%emt 0:01:02]} f6 {[%emt 0:01:58]} 44. Ref2 {[%emt 0:01:33]} Rcc6 {[%emt 0:00:
36]} 45. Kh4 {[%emt 0:02:17]} Re6 {[%emt 0:01:07]} 46. Rg2 {[%emt 0:05:38]} Re5
{[%emt 0:00:54]} 47. Rg6+ {[%emt 0:00:05]} Kh7 {[%emt 0:00:04]} 48. Kg4 {[%emt
0:01:52]} Rbe6 {[%emt 0:09:30]} 49. Kf3 {[%emt 0:02:06]} Rxh5 {[%emt 0:01:43]}
50. Rgxf6 {[%emt 0:00:26]} Rh3+ {[%emt 0:00:23]} 51. Kg4 {[%emt 0:00:32]} Rxf6
{[%emt 0:00:05]} 52. Rxf6 {[%emt 0:00:04]} Rxa3 {[%emt 0:00:09]} 53. e5 {[%emt
0:01:34]} Kg7 {[%emt 0:00:30]} 54. Rf2 {[%emt 0:07:20]} a5 {[%emt 0:00:38]} 55.
Kf5 {[%emt 0:02:31]} Kf7 {[%emt 0:00:44]} 56. h4 {[%emt 0:01:18]} Ra1 {[%emt 0:
00:45]} 57. h5 {[%emt 0:02:32]} Rh1 {[%emt 0:01:06]} 58. Ke4+ {[%emt 0:01:00]}
Ke7 {[%emt 0:00:28]} 59. Ra2 {[%emt 0:02:16]} Ke6 {[%emt 0:01:11]} 60. Rxa5 {
[%emt 0:01:40]} Rh4+ {[%emt 0:00:05]} 61. Ke3 {[%emt 0:00:17]} Rxh5 {[%emt 0:
00:08]} 62. Ra6+ {[%emt 0:00:12]} Kd5 {[%emt 0:12:41]} 63. Kf4 {[%emt 0:00:14]}
Rh4+ {[%emt 0:00:05]} 64. Kf5 {[%emt 0:01:11]} Rh5+ {[%emt 0:00:06]} 65. Kf4 {
[%emt 0:00:06]} Rh4+ {[%emt 0:00:03]} 66. Kg5 {[%emt 0:00:08]} Re4 {[%emt 0:00:
06]} 67. Kf6 {[%emt 0:00:10]} Rf4+ {[%emt 0:00:05]} 68. Kg5 {[%emt 0:00:20]}
Re4 {[%emt 0:00:03]} 69. e6 {[%emt 0:00:53]} Rxe6 {[%emt 0:00:05]} 70. Rxe6 {
[%emt 0:00:03]} Kxe6 {[%emt 0:00:05]} 1/2-1/2

[Event "ETCC Women 2013"]
[Site "Warsaw"]
[Date "2013.11.12"]
[Round "5"]
[White "Gronnestad, Anita"]
[Black "Novak, Ksenija"]
[Result "1-0"]
[ECO "A20"]
[WhiteElo "1958"]
[BlackElo "2082"]
[PlyCount "167"]
[EventDate "2013.??.??"]
[EventCountry "POL"]
[WhiteTeam "Norway"]
[BlackTeam "Slovenia"]
[WhiteTeamCountry "NOR"]
[BlackTeamCountry "SLO"]
[TimeControl "40/5400+30:1800+30"]

1. c4 {[%emt 0:00:00]} e5 {[%emt 0:00:21]} 2. g3 {[%emt 0:00:00]} Nf6 {[%emt 0:
00:54]} 3. Bg2 {[%emt 0:00:31]} c6 {[%emt 0:01:19]} 4. d4 {[%emt 0:00:20]} exd4
{[%emt 0:01:23]} 5. Qxd4 {[%emt 0:03:09]} d5 {[%emt 0:03:02]} 6. Nf3 {[%emt 0:
02:50]} dxc4 {[%emt 0:11:17]} 7. Qxc4 {[%emt 0:05:02]} Be6 {[%emt 0:06:27]} 8.
Qc2 {[%emt 0:05:02]} Bb4+ {[%emt 0:00:35]} 9. Bd2 {[%emt 0:02:40]} Bxd2+ {
[%emt 0:14:55]} 10. Nbxd2 {[%emt 0:01:03]} O-O {[%emt 0:00:53]} 11. O-O {[%emt
0:04:57]} Qa5 {[%emt 0:04:14]} 12. Nd4 {[%emt 0:08:46]} Bg4 {[%emt 0:05:26]}
13. h3 {[%emt 0:02:15]} Qb6 {[%emt 0:10:38]} 14. e3 {[%emt 0:08:41]} Bd7 {
[%emt 0:04:11]} 15. Rad1 {[%emt 0:06:23]} c5 {[%emt 0:14:29]} 16. Nc4 {[%emt 0:
04:36]} Qa6 {[%emt 0:00:52]} 17. Nb3 {[%emt 0:10:35]} Be6 {[%emt 0:00:49]} 18.
Nd6 {[%emt 0:07:21]} Nbd7 {[%emt 0:07:10]} 19. Bxb7 {[%emt 0:06:11]} Qxa2 {
[%emt 0:00:11]} 20. Nd2 {[%emt 0:00:41]} Bxh3 {[%emt 0:02:21]} 21. Bxa8 {[%emt
0:05:20]} Bxf1 {[%emt 0:01:55]} 22. Rxf1 {[%emt 0:03:24]} Rxa8 {[%emt 0:00:07]}
23. N2c4 {[%emt 0:03:51]} g6 {[%emt 0:05:04]} 24. Rd1 {[%emt 0:00:46]} Rf8 {
[%emt 0:00:31]} 25. Qc3 {[%emt 0:03:39]} Qa4 {[%emt 0:01:03]} 26. b3 {[%emt 0:
01:05]} Qc6 {[%emt 0:00:22]} 27. e4 {[%emt 0:00:55]} Ne8 {[%emt 0:01:42]} 28.
Na5 {[%emt 0:01:26]} Qc7 {[%emt 0:00:19]} 29. Nb5 {[%emt 0:00:17]} Qc8 {[%emt
0:00:40]} 30. Nxa7 {[%emt 0:00:25]} Qc7 {[%emt 0:00:12]} 31. N7c6 {[%emt 0:00:
49]} Nb8 {[%emt 0:01:21]} 32. Qxc5 {[%emt 0:01:19]} Nxc6 {[%emt 0:00:28]} 33.
Nxc6 {[%emt 0:00:07]} Kg7 {[%emt 0:00:43]} 34. b4 {[%emt 0:01:36]} f5 {[%emt 0:
00:29]} 35. Nd4 {[%emt 0:00:46]} Qxc5 {[%emt 0:00:07]} 36. bxc5 {[%emt 0:00:01]
} Nc7 {[%emt 0:00:10]} 37. exf5 {[%emt 0:00:39]} gxf5 {[%emt 0:00:05]} 38. Ne2
{[%emt 0:00:07]} Rf7 {[%emt 0:00:21]} 39. Nf4 {[%emt 0:00:08]} Re7 {[%emt 0:00:
38]} 40. c6 {[%emt 0:00:00]} Kf7 {[%emt 0:00:00]} 41. Kg2 {[%emt 0:01:28]} Ne6
{[%emt 0:03:32]} 42. Nd5 {[%emt 0:06:51]} Ra7 {[%emt 0:00:12]} 43. Rb1 {[%emt
0:01:42]} Kg6 {[%emt 0:06:45]} 44. Rb6 {[%emt 0:03:14]} Kh5 {[%emt 0:02:14]}
45. Rb7 {[%emt 0:03:32]} Ra5 {[%emt 0:00:17]} 46. Nf6+ {[%emt 0:01:18]} Kg6 {
[%emt 0:02:14]} 47. Nd7 {[%emt 0:04:39]} f4 {[%emt 0:01:15]} 48. c7 {[%emt 0:
01:55]} Nxc7 {[%emt 0:01:48]} 49. Rxc7 {[%emt 0:00:10]} fxg3 {[%emt 0:00:22]}
50. Kxg3 {[%emt 0:00:33]} Ra3+ {[%emt 0:00:44]} 51. f3 {[%emt 0:00:17]} h5 {
[%emt 0:00:37]} 52. Rc5 {[%emt 0:02:33]} Ra7 {[%emt 0:01:01]} 53. Ne5+ {[%emt
0:00:35]} Kf6 {[%emt 0:02:42]} 54. Nc6 {[%emt 0:02:33]} Rg7+ {[%emt 0:02:10]}
55. Kh4 {[%emt 0:00:28]} Rg1 {[%emt 0:00:20]} 56. Kxh5 {[%emt 0:00:50]} Rg3 {
[%emt 0:00:24]} 57. f4 {[%emt 0:00:30]} Rg1 {[%emt 0:00:21]} 58. Ne5 {[%emt 0:
01:57]} Rh1+ {[%emt 0:02:07]} 59. Kg4 {[%emt 0:00:07]} Rg1+ {[%emt 0:00:04]}
60. Kf3 {[%emt 0:00:07]} Rf1+ {[%emt 0:00:05]} 61. Ke3 {[%emt 0:00:17]} Re1+ {
[%emt 0:00:28]} 62. Kf2 {[%emt 0:00:15]} Ra1 {[%emt 0:00:19]} 63. Ng4+ {[%emt
0:00:26]} Ke7 {[%emt 0:00:24]} 64. Rc6 {[%emt 0:01:00]} Ra3 {[%emt 0:02:47]}
65. Ne3 {[%emt 0:00:18]} Kf7 {[%emt 0:00:44]} 66. Kf3 {[%emt 0:00:14]} Ke7 {
[%emt 0:00:25]} 67. Ke4 {[%emt 0:00:19]} Kf7 {[%emt 0:00:31]} 68. Nd5 {[%emt 0:
00:25]} Ra5 {[%emt 0:01:07]} 69. Rc7+ {[%emt 0:00:28]} Ke6 {[%emt 0:01:23]} 70.
Rc6+ {[%emt 0:01:33]} Kd7 {[%emt 0:00:09]} 71. Rh6 {[%emt 0:00:27]} Ra1 {[%emt
0:00:15]} 72. f5 {[%emt 0:01:02]} Re1+ {[%emt 0:00:13]} 73. Ne3 {[%emt 0:00:11]
} Ke7 {[%emt 0:00:06]} 74. Re6+ {[%emt 0:00:24]} Kf7 {[%emt 0:00:06]} 75. Kf4 {
[%emt 0:00:44]} Re2 {[%emt 0:00:13]} 76. Kg5 {[%emt 0:01:16]} Re1 {[%emt 0:00:
42]} 77. Rf6+ {[%emt 0:00:13]} Kg7 {[%emt 0:00:17]} 78. Rg6+ {[%emt 0:00:15]}
Kf7 {[%emt 0:01:05]} 79. Ng4 {[%emt 0:00:15]} Rg1 {[%emt 0:00:57]} 80. Ra6 {
[%emt 0:00:10]} Kg7 {[%emt 0:00:55]} 81. f6+ {[%emt 0:00:26]} Kh8 {[%emt 0:00:
54]} 82. Ra8+ {[%emt 0:01:43]} Kh7 {[%emt 0:00:06]} 83. f7 {[%emt 0:00:36]} Rf1
{[%emt 0:00:08]} 84. Nf6+ {[%emt 0:00:52]} 1-0

[Event "ETCC Women 2013"]
[Site "Warsaw"]
[Date "2013.11.12"]
[Round "5"]
[White "Gunina, Valentina"]
[Black "Paehtz, Elisabeth"]
[Result "1/2-1/2"]
[ECO "D16"]
[WhiteElo "2509"]
[BlackElo "2449"]
[PlyCount "107"]
[EventDate "2013.??.??"]
[EventCountry "POL"]
[WhiteTeam "Russia"]
[BlackTeam "Germany"]
[WhiteTeamCountry "RUS"]
[BlackTeamCountry "GER"]
[TimeControl "40/5400+30:1800+30"]

1. d4 {[%emt 0:00:00]} d5 {[%emt 0:00:00]} 2. c4 {[%emt 0:00:00]} c6 {[%emt 0:
00:00]} 3. Nf3 {[%emt 0:00:00]} Nf6 {[%emt 0:00:00]} 4. Nc3 {[%emt 0:00:15]}
dxc4 {[%emt 0:00:00]} 5. a4 {[%emt 0:00:08]} Na6 {[%emt 0:00:00]} 6. Ne5 {
[%emt 0:10:39]} Ng4 {[%emt 0:00:03]} 7. Nxc4 {[%emt 0:09:36]} e5 {[%emt 0:00:
08]} 8. e3 {[%emt 0:20:15]} exd4 {[%emt 0:03:45]} 9. exd4 {[%emt 0:00:43]} Nb4
{[%emt 0:05:10]} 10. Be2 {[%emt 0:01:33]} Qxd4 {[%emt 0:20:25]} 11. O-O {[%emt
0:00:44]} Qxd1 {[%emt 0:00:34]} 12. Rxd1 {[%emt 0:00:34]} Nf6 {[%emt 0:09:03]}
13. Bf4 {[%emt 0:15:25]} Nbd5 {[%emt 0:06:10]} 14. Be5 {[%emt 0:00:47]} Be6 {
[%emt 0:06:12]} 15. Na5 {[%emt 0:08:50]} O-O-O {[%emt 0:26:40]} 16. Nb5 {[%emt
0:07:09]} Bb4 {[%emt 0:02:12]} 17. Nxa7+ {[%emt 0:00:25]} Kd7 {[%emt 0:00:03]}
18. Nxb7 {[%emt 0:00:42]} Ra8 {[%emt 0:00:25]} 19. Bd4 {[%emt 0:02:11]} Kc7 {
[%emt 0:06:03]} 20. Nc5 {[%emt 0:12:34]} Bxc5 {[%emt 0:00:09]} 21. Bxc5 {[%emt
0:00:01]} Kb7 {[%emt 0:05:16]} 22. Rac1 {[%emt 0:01:27]} Rhb8 {[%emt 0:03:02]}
23. Nxc6 {[%emt 0:01:51]} Kxc6 {[%emt 0:00:19]} 24. Ba7+ {[%emt 0:00:03]} Kb7 {
[%emt 0:00:35]} 25. Bxb8 {[%emt 0:00:09]} Kxb8 {[%emt 0:00:10]} 26. Bb5 {[%emt
0:01:07]} Ka7 {[%emt 0:00:19]} 27. Rc6 {[%emt 0:01:01]} Rc8 {[%emt 0:01:00]}
28. Rxc8 {[%emt 0:00:09]} Bxc8 {[%emt 0:00:04]} 29. f3 {[%emt 0:00:32]} Kb6 {
[%emt 0:00:09]} 30. Kf2 {[%emt 0:00:51]} Be6 {[%emt 0:00:25]} 31. Rd4 {[%emt 0:
01:06]} Nc7 {[%emt 0:00:41]} 32. Be2 {[%emt 0:01:23]} Ka5 {[%emt 0:01:39]} 33.
Bd1 {[%emt 0:00:49]} Na6 {[%emt 0:00:17]} 34. g4 {[%emt 0:00:33]} Nb4 {[%emt 0:
00:57]} 35. g5 {[%emt 0:00:58]} Nd7 {[%emt 0:00:09]} 36. h4 {[%emt 0:01:42]}
Nc5 {[%emt 0:01:47]} 37. Rd8 {[%emt 0:00:44]} Nbd3+ {[%emt 0:03:21]} 38. Ke3 {
[%emt 0:00:19]} Nxb2 {[%emt 0:00:30]} 39. Bc2 {[%emt 0:00:39]} g6 {[%emt 0:01:
00]} 40. Kd4 {[%emt 0:00:00]} Nbxa4 {[%emt 0:00:00]} 41. f4 {[%emt 0:06:34]}
Kb5 {[%emt 0:04:10]} 42. Rh8 {[%emt 0:03:15]} Nb6 {[%emt 0:04:06]} 43. h5 {
[%emt 0:03:58]} gxh5 {[%emt 0:02:17]} 44. Rxh7 {[%emt 0:00:37]} Ncd7 {[%emt 0:
13:19]} 45. Be4 {[%emt 0:01:46]} Nc5 {[%emt 0:03:10]} 46. Bf3 {[%emt 0:01:59]}
Nb3+ {[%emt 0:02:55]} 47. Ke5 {[%emt 0:02:33]} Nd7+ {[%emt 0:03:20]} 48. Kd6 {
[%emt 0:00:01]} Nd4 {[%emt 0:00:08]} 49. Be4 {[%emt 0:03:21]} Nc5 {[%emt 0:00:
05]} 50. Bd5 {[%emt 0:03:41]} Nf5+ {[%emt 0:00:17]} 51. Ke5 {[%emt 0:00:01]}
Nd7+ {[%emt 0:00:15]} 52. Ke4 {[%emt 0:00:04]} Nc5+ {[%emt 0:00:43]} 53. Ke5 {
[%emt 0:00:01]} Nd7+ {[%emt 0:01:13]} 54. Ke4 {[%emt 0:00:01]} 1/2-1/2